{"text_format":"1","workbook":"xlsx","n_sheets":7,"sheets":["Instructions","Récapitulatif","Coûts salariaux","Coûts d'exploitation","Coûts d'investissement","Revenus et recettes","Aperçu des coûts possibles"],"not_rendered":{"charts":0,"images":3,"macros":1,"external_links":0,"defined_names":0,"comments":0,"pivot_tables":0},"unopened":[],"bounds":{"document_bytes":16777216,"sheet_cells":100000,"rows_first":2000,"rows_last":500,"rows_between":2000,"halvings":0,"cell_chars":16384,"cell_head_chars":4096},"cells_cut":0,"cells_raw":0,"read":"whole","date_system":"1900"}

{"sheet":"Instructions","index":0,"n_rows":1,"n_cols":1,"rows_kept":1,"cut":false,"hidden":false,"merged":[[0,0,1048575,16383]]}
["In je financieel plan zet je op een rij wat je minimaal nodig hebt bij de start van je bedrijf. Welke investeringen je gaat doen en hoe je die financiert. Je maakt een inschatting of je bedrijf rendabel is. Welke omzet je verwacht en of je bedrijf winst of verlies maakt."]

{"sheet":"Récapitulatif","index":1,"n_rows":26,"n_cols":9,"rows_kept":26,"cut":false,"hidden":false,"merged":[[4,8,5,8],[0,0,0,1],[2,1,2,8],[4,1,5,1],[3,2,4,2],[3,3,4,3],[4,0,5,0]]}
["Récapitulatif"]
[]
["NOM DU PROJET:"]
[null,null,"min. de la subvention e-inclusion demandée","max. de la subvention e-inclusion demandée",null,"ANNÉE 1","ANNÉE 2","ANNÉE 3"]
["Nombre d'habitants dans la/les commune(s) du/des CPAS :",0,null,null,"De:",null,null,null,"DURÉE TOTALE \nDU PROJET"]
[null,null,{"$f":"_xlfn.IFS(B5>150000,60000,B5>50000,60000,B5>15000,60000,B5>9999,0,B5<9999,\" \")","v":" "},{"$f":"_xlfn.IFS(B5>150000,400000,B5>50000,250000,B5>15000,120000,B5>9999,60000,B5<9999,\" \")","v":" "},"À:"]
["COÛTS"]
["Coûts salariaux",null,null,null,null,{"$f":"SUM(Tabel5[Coût salarial total])","v":0},{"$f":"SUM(Tabel57[Coût salarial total])","v":0},{"$f":"SUM(Tabel58[Coût salarial total])","v":0},{"$f":"SUM(F8:H8)","v":0}]
["Coûts d'exploitation",null,null,null,null,{"$f":"SUM(Tabel2[Total])","v":0},{"$f":"SUM(Tabel24[Total])","v":0},{"$f":"SUM(Tabel25[Total])","v":0},{"$f":"SUM(F9:H9)","v":0}]
["Coûts d'investissement",null,null,null,null,{"$f":"SUM(Tabel22[Total])","v":0},{"$f":"SUM(Tabel249[Total])","v":0},{"$f":"SUM(Tabel2510[Total])","v":0},{"$f":"SUM(F10:H10)","v":0}]
["TVA récupérable",null,null,null,null,{"$f":"SUM(Tabel2[TVA récupérable],Tabel22[Total TVA récupérable])","v":0},{"$f":"SUM(Tabel24[TVA récupérable],Tabel249[Total TVA récupérable])","v":0},{"$f":"SUM(Tabel25[TVA récupérable],Tabel2510[Total TVA récupérable])","v":0},{"$f":"SUM(F11:H11)","v":0}]
["TVA non-récupérable (a déjà été ajouté aux coûts)",null,null,null,null,{"$f":"SUM(Tabel2[TVA non-récupérable],Tabel22[Total TVA non-récupérable])","v":0},{"$f":"SUM(Tabel24[TVA non-récupérable],Tabel249[Total TVA non-récupérable])","v":0},{"$f":"SUM(Tabel25[TVA non-récupérable],Tabel2510[Total TVA non-récupérable])","v":0},{"$f":"SUM(F12:H12)","v":0}]
[]
["COÛT TOTAL",null,null,null,null,{"$f":"SUM(F8+F9+F10-F11)","v":0},{"$f":"SUM(G8+G9+G10-G11)","v":0},{"$f":"SUM(H8+H9+H10-H11)","v":0},{"$f":"SUM(I8+I9+I10-I11)","v":0}]
[]
["REVENUS ET RECETTES"]
["Contribution propre/revenus ou recettes",null,null,null,null,{"$f":"SUM(Tabel2121527[Montant])","v":0},{"$f":"SUM(Tabel212152729[Montant])","v":0},{"$f":"SUM(Tabel212152731[Montant])","v":0},{"$f":"SUM(F17:H17)","v":0}]
["Autres apports (partenaire/privé)",null,null,null,null,{"$f":"SUM(Tabel2121528[Montant])","v":0},{"$f":"SUM(Tabel212152730[Montant])","v":0},{"$f":"SUM(Tabel212152732[Montant])","v":0},{"$f":"SUM(F18:H18)","v":0}]
["Autres subventions/contributions publiques demandées ou obtenues ailleurs",null,null,null,null,{"$f":"SUM(Tabel212152733[Montant])","v":0},{"$f":"SUM(Tabel212152735[Montant])","v":0},{"$f":"SUM(Tabel212152737[Montant])","v":0},{"$f":"SUM(F19:H19)","v":0}]
[]
["TOTAL DES REVENUS ET RECETTES*",null,null,null,null,{"$f":"SUM(F17:F19)","v":0},{"$f":"SUM(G17:G19)","v":0},0,{"$f":"SUM(I17:I19)","v":0}]
[]
[" Montant de la subvention demandée dans le cadre d' \"e-inclusion for Belgium - CPAS 2022\"",null,null,null,null,{"$f":"(F14-F21)","v":0},{"$f":"(G14-G21)","v":0},0,0]
[]
["TOTAL DES REVENUS ET RECETTES + SUBVENTION",null,null,null,null,{"$f":"SUM(F21+F23)","v":0},{"$f":"SUM(G21+G23)","v":0},{"$f":"SUM(H21+H23)","v":0},{"$f":"SUM(I21+I23)","v":0}]
["* Si la cellule du \"Total des revenus et recettes\" est colorée en rouge, cela signifie que le cofinancement d'au moins 20% n'est pas respecté."]

{"sheet":"Coûts salariaux","index":2,"n_rows":27,"n_cols":6,"rows_kept":27,"cut":false,"hidden":false,"merged":[[0,0,0,1],[8,0,8,5],[2,0,5,1]]}
["Coûts salariaux"]
[]
["Documents justificatifs à présenter en cas de contrôle \n(non-exhaustif):",null,"• Fiches de salaire ou équivalents (attestations, extraits de la gestion électronique…)"]
[null,null,"• Contrat de travail/Décision de nomination"]
[null,null,"• Description de fonction (lien clair avec le projet)"]
[null,null,"• Timesheets (pour un emploi à 100%= conseillé, pour un emploi partiel= obligatoire)"]
[]
["Si vous avez besoin de plus de lignes que celles prévues dans le(s) tableau(x), vous pouvez ajouter vous-même des lignes en cliquant dans le tableau concerné avec votre souris, puis sur le bouton \"Ajouter une ligne\"."]
["Veuillez vérifier qu'un coût salarial n'est pas financé par un autre gouvernement/partenaire pour éviter le double financement."]
["Année 1","Fonction/Organisation","Durée de l'engagement dans le cadre du projet","Charge de travail dédiée au projet (=% d'ETP)","Coût salarial brut sur une base annuelle","Coût salarial total"]
[null,null,null,null,null,{"$f":"(((Tabel5[[#This Row],[Coût salarial brut sur une base annuelle]]/12)*Tabel5[[#This Row],[Durée de l''engagement dans le cadre du projet]])*Tabel5[[#This Row],[Charge de travail dédiée au projet (=% d''ETP)]])","v":0}]
[null,null,null,null,null,{"$f":"(((Tabel5[[#This Row],[Coût salarial brut sur une base annuelle]]/12)*Tabel5[[#This Row],[Durée de l''engagement dans le cadre du projet]])*Tabel5[[#This Row],[Charge de travail dédiée au projet (=% d''ETP)]])","v":0}]
[null,null,null,null,null,{"$f":"(((Tabel5[[#This Row],[Coût salarial brut sur une base annuelle]]/12)*Tabel5[[#This Row],[Durée de l''engagement dans le cadre du projet]])*Tabel5[[#This Row],[Charge de travail dédiée au projet (=% d''ETP)]])","v":0}]
[null,null,null,null,null,{"$f":"(((Tabel5[[#This Row],[Coût salarial brut sur une base annuelle]]/12)*Tabel5[[#This Row],[Durée de l''engagement dans le cadre du projet]])*Tabel5[[#This Row],[Charge de travail dédiée au projet (=% d''ETP)]])","v":0}]
[null,null,null,null,null,{"$f":"(((Tabel5[[#This Row],[Coût salarial brut sur une base annuelle]]/12)*Tabel5[[#This Row],[Durée de l''engagement dans le cadre du projet]])*Tabel5[[#This Row],[Charge de travail dédiée au projet (=% d''ETP)]])","v":0}]
["Année 2","Fonction/Organisation","Durée de l'engagement dans le cadre du projet","Charge de travail dédiée au projet (=% d'ETP)","Coût salarial brut sur une base annuelle","Coût salarial total"]
[null,null,null,null,null,{"$f":"(((Tabel57[[#This Row],[Coût salarial brut sur une base annuelle]]/12)*Tabel57[[#This Row],[Durée de l''engagement dans le cadre du projet]])*Tabel57[[#This Row],[Charge de travail dédiée au projet (=% d''ETP)]])","v":0}]
[null,null,null,null,null,{"$f":"(((Tabel57[[#This Row],[Coût salarial brut sur une base annuelle]]/12)*Tabel57[[#This Row],[Durée de l''engagement dans le cadre du projet]])*Tabel57[[#This Row],[Charge de travail dédiée au projet (=% d''ETP)]])","v":0}]
[null,null,null,null,null,{"$f":"(((Tabel57[[#This Row],[Coût salarial brut sur une base annuelle]]/12)*Tabel57[[#This Row],[Durée de l''engagement dans le cadre du projet]])*Tabel57[[#This Row],[Charge de travail dédiée au projet (=% d''ETP)]])","v":0}]
[null,null,null,null,null,{"$f":"(((Tabel57[[#This Row],[Coût salarial brut sur une base annuelle]]/12)*Tabel57[[#This Row],[Durée de l''engagement dans le cadre du projet]])*Tabel57[[#This Row],[Charge de travail dédiée au projet (=% d''ETP)]])","v":0}]
[null,null,null,null,null,{"$f":"(((Tabel57[[#This Row],[Coût salarial brut sur une base annuelle]]/12)*Tabel57[[#This Row],[Durée de l''engagement dans le cadre du projet]])*Tabel57[[#This Row],[Charge de travail dédiée au projet (=% d''ETP)]])","v":0}]
["Année 3","Fonction/Organisation","Durée de l'engagement dans le cadre du projet","Charge de travail dédiée au projet (=% d'ETP)","Coût salarial brut sur une base annuelle","Coût salarial total"]
[null,null,null,null,null,{"$f":"(((Tabel58[[#This Row],[Coût salarial brut sur une base annuelle]]/12)*Tabel58[[#This Row],[Durée de l''engagement dans le cadre du projet]])*Tabel58[[#This Row],[Charge de travail dédiée au projet (=% d''ETP)]])","v":0}]
[null,null,null,null,null,{"$f":"(((Tabel58[[#This Row],[Coût salarial brut sur une base annuelle]]/12)*Tabel58[[#This Row],[Durée de l''engagement dans le cadre du projet]])*Tabel58[[#This Row],[Charge de travail dédiée au projet (=% d''ETP)]])","v":0}]
[null,null,null,null,null,{"$f":"(((Tabel58[[#This Row],[Coût salarial brut sur une base annuelle]]/12)*Tabel58[[#This Row],[Durée de l''engagement dans le cadre du projet]])*Tabel58[[#This Row],[Charge de travail dédiée au projet (=% d''ETP)]])","v":0}]
[null,null,null,null,null,{"$f":"(((Tabel58[[#This Row],[Coût salarial brut sur une base annuelle]]/12)*Tabel58[[#This Row],[Durée de l''engagement dans le cadre du projet]])*Tabel58[[#This Row],[Charge de travail dédiée au projet (=% d''ETP)]])","v":0}]
[null,null,null,null,null,{"$f":"(((Tabel58[[#This Row],[Coût salarial brut sur une base annuelle]]/12)*Tabel58[[#This Row],[Durée de l''engagement dans le cadre du projet]])*Tabel58[[#This Row],[Charge de travail dédiée au projet (=% d''ETP)]])","v":0}]

{"sheet":"Coûts d'exploitation","index":3,"n_rows":30,"n_cols":8,"rows_kept":30,"cut":false,"hidden":false,"merged":[[2,0,8,1]]}
["Coûts d'exploitation"]
[]
["Documents justificatifs à présenter en cas de contrôle \n(non-exhaustif):",null,"• Tickets d'achat/factures"]
[null,null,"• Tickets de transport/factures"]
[null,null,"• Si nuitée: preuve de cette nuitée"]
[null,null,"• Pièces qui documentent le séjour/le déplacement: invitation, rapport, brochure, programme, inscription…"]
[null,null,"• Listes de présence"]
[null,null,"• Preuve de participation au projet (signé par le participant+le personnel du projet impliqué)"]
[null,null,"• Preuve récente d'un statut valide au moment du début de la participation au projet + vérification annuelle de celui-ci"]
[]
["Si vous avez besoin de plus de lignes que celles prévues dans le(s) tableau(x), vous pouvez ajouter vous-même des lignes en cliquant dans le tableau concerné avec votre souris, puis sur le bouton \"Ajouter une ligne\"."]
["Organisation = nom du partenaire ; Description = brève description du coût ; Objectif = indiquer clairement comment le coût est lié au projet et à quel objectif est-il lié"]
["Année 1","Organisation","Description du coût","Objectif","Coût hors TVA","TVA récupérable","TVA non-récupérable","Total"]
[null,null,null,null,null,null,null,{"$f":"SUM(Tabel2[[#This Row],[Coût hors TVA]],Tabel2[[#This Row],[TVA récupérable]],Tabel2[[#This Row],[TVA non-récupérable]])","v":0}]
[null,null,null,null,null,null,null,{"$f":"SUM(Tabel2[[#This Row],[Coût hors TVA]],Tabel2[[#This Row],[TVA récupérable]],Tabel2[[#This Row],[TVA non-récupérable]])","v":0}]
[null,null,null,null,null,null,null,{"$f":"SUM(Tabel2[[#This Row],[Coût hors TVA]],Tabel2[[#This Row],[TVA récupérable]],Tabel2[[#This Row],[TVA non-récupérable]])","v":0}]
[null,null,null,null,null,null,null,{"$f":"SUM(Tabel2[[#This Row],[Coût hors TVA]],Tabel2[[#This Row],[TVA récupérable]],Tabel2[[#This Row],[TVA non-récupérable]])","v":0}]
[null,null,null,null,null,null,null,{"$f":"SUM(Tabel2[[#This Row],[Coût hors TVA]],Tabel2[[#This Row],[TVA récupérable]],Tabel2[[#This Row],[TVA non-récupérable]])","v":0}]
["Année 2","Organisation","Description du coût","Objectif","Coût hors TVA","TVA récupérable","TVA non-récupérable","Total"]
[null,null,null,null,null,null,null,{"$f":"SUM(Tabel24[[#This Row],[Coût hors TVA]],Tabel24[[#This Row],[TVA récupérable]],Tabel24[[#This Row],[TVA non-récupérable]])","v":0}]
[null,null,null,null,null,null,null,{"$f":"SUM(Tabel24[[#This Row],[Coût hors TVA]],Tabel24[[#This Row],[TVA récupérable]],Tabel24[[#This Row],[TVA non-récupérable]])","v":0}]
[null,null,null,null,null,null,null,{"$f":"SUM(Tabel24[[#This Row],[Coût hors TVA]],Tabel24[[#This Row],[TVA récupérable]],Tabel24[[#This Row],[TVA non-récupérable]])","v":0}]
[null,null,null,null,null,null,null,{"$f":"SUM(Tabel24[[#This Row],[Coût hors TVA]],Tabel24[[#This Row],[TVA récupérable]],Tabel24[[#This Row],[TVA non-récupérable]])","v":0}]
[null,null,null,null,null,null,null,{"$f":"SUM(Tabel24[[#This Row],[Coût hors TVA]],Tabel24[[#This Row],[TVA récupérable]],Tabel24[[#This Row],[TVA non-récupérable]])","v":0}]
["Année 3","Organisation","Description du coût","Objectif","Coût hors TVA","TVA récupérable","TVA non-récupérable","Total"]
[null,null,null,null,null,null,null,{"$f":"SUM(Tabel25[[#This Row],[Coût hors TVA]],Tabel25[[#This Row],[TVA récupérable]],Tabel25[[#This Row],[TVA non-récupérable]])","v":0}]
[null,null,null,null,null,null,null,{"$f":"SUM(Tabel25[[#This Row],[Coût hors TVA]],Tabel25[[#This Row],[TVA récupérable]],Tabel25[[#This Row],[TVA non-récupérable]])","v":0}]
[null,null,null,null,null,null,null,{"$f":"SUM(Tabel25[[#This Row],[Coût hors TVA]],Tabel25[[#This Row],[TVA récupérable]],Tabel25[[#This Row],[TVA non-récupérable]])","v":0}]
[null,null,null,null,null,null,null,{"$f":"SUM(Tabel25[[#This Row],[Coût hors TVA]],Tabel25[[#This Row],[TVA récupérable]],Tabel25[[#This Row],[TVA non-récupérable]])","v":0}]
[null,null,null,null,null,null,null,{"$f":"SUM(Tabel25[[#This Row],[Coût hors TVA]],Tabel25[[#This Row],[TVA récupérable]],Tabel25[[#This Row],[TVA non-récupérable]])","v":0}]

{"sheet":"Coûts d'investissement","index":4,"n_rows":29,"n_cols":11,"rows_kept":29,"cut":false,"hidden":false,"merged":[[10,0,10,8],[2,0,7,1]]}
["Coûts d'investissement"]
[]
["Documents justificatifs à présenter en cas de contrôle \n(non-exhaustif):",null,"• Tickets d'achat/factures"]
[null,null,"• Tickets de transport/factures"]
[null,null,"• Si nuitée: preuve de cette nuitée"]
[null,null,"• Pièces qui documentent le séjour/le déplacement: invitation, rapport, brochure, programme, inscription…"]
[null,null,"• Preuve de participation au projet (signé par le participant+le personnel du projet impliqué)"]
[null,null,"• Preuve récente d'un statut valide au moment du début de la participation au projet + vérification annuelle de celui-ci"]
[]
["Si vous avez besoin de plus de lignes que celles prévues dans le(s) tableau(x), vous pouvez ajouter vous-même des lignes en cliquant dans le tableau concerné avec votre souris, puis sur le bouton \"Ajouter une ligne\"."]
["Organisation = nom du partenaire ; Description = brève description du coût ; Objectif = indiquer clairement comment le coût est lié au projet et à quel objectif est-il lié"]
["Année 1","Organisation","Description du coût","Objectif","Coût hors TVA","TVA récupérable","TVA non-récupérable","Quantité","Total","Total TVA récupérable","Total TVA non-récupérable"]
[null,null,null,null,null,null,null,null,{"$f":"(Tabel22[[#This Row],[Coût hors TVA]]+Tabel22[[#This Row],[TVA récupérable]]+Tabel22[[#This Row],[TVA non-récupérable]])*Tabel22[[#This Row],[Quantité]]","v":0},{"$f":"(Tabel22[[#This Row],[TVA récupérable]]*Tabel22[[#This Row],[Quantité]])","v":0},{"$f":"(Tabel22[[#This Row],[TVA non-récupérable]]*Tabel22[[#This Row],[Quantité]])","v":0}]
[null,null,null,null,null,null,null,null,{"$f":"(Tabel22[[#This Row],[Coût hors TVA]]+Tabel22[[#This Row],[TVA récupérable]]+Tabel22[[#This Row],[TVA non-récupérable]])*Tabel22[[#This Row],[Quantité]]","v":0},{"$f":"(Tabel22[[#This Row],[TVA récupérable]]*Tabel22[[#This Row],[Quantité]])","v":0},{"$f":"(Tabel22[[#This Row],[TVA non-récupérable]]*Tabel22[[#This Row],[Quantité]])","v":0}]
[null,null,null,null,null,null,null,null,{"$f":"(Tabel22[[#This Row],[Coût hors TVA]]+Tabel22[[#This Row],[TVA récupérable]]+Tabel22[[#This Row],[TVA non-récupérable]])*Tabel22[[#This Row],[Quantité]]","v":0},{"$f":"(Tabel22[[#This Row],[TVA récupérable]]*Tabel22[[#This Row],[Quantité]])","v":0},{"$f":"(Tabel22[[#This Row],[TVA non-récupérable]]*Tabel22[[#This Row],[Quantité]])","v":0}]
[null,null,null,null,null,null,null,null,{"$f":"(Tabel22[[#This Row],[Coût hors TVA]]+Tabel22[[#This Row],[TVA récupérable]]+Tabel22[[#This Row],[TVA non-récupérable]])*Tabel22[[#This Row],[Quantité]]","v":0},{"$f":"(Tabel22[[#This Row],[TVA récupérable]]*Tabel22[[#This Row],[Quantité]])","v":0},{"$f":"(Tabel22[[#This Row],[TVA non-récupérable]]*Tabel22[[#This Row],[Quantité]])","v":0}]
[null,null,null,null,null,null,null,null,{"$f":"(Tabel22[[#This Row],[Coût hors TVA]]+Tabel22[[#This Row],[TVA récupérable]]+Tabel22[[#This Row],[TVA non-récupérable]])*Tabel22[[#This Row],[Quantité]]","v":0},{"$f":"(Tabel22[[#This Row],[TVA récupérable]]*Tabel22[[#This Row],[Quantité]])","v":0},{"$f":"(Tabel22[[#This Row],[TVA non-récupérable]]*Tabel22[[#This Row],[Quantité]])","v":0}]
["Année 2","Organisation","Description du coût","Objectif","Coût hors TVA","TVA récupérable","TVA non-récupérable","Quantité","Total","Total TVA récupérable","Total TVA non-récupérable"]
[null,null,null,null,null,null,null,null,{"$f":"(Tabel249[[#This Row],[Coût hors TVA]]+Tabel249[[#This Row],[TVA récupérable]]+Tabel249[[#This Row],[TVA non-récupérable]])*Tabel249[[#This Row],[Quantité]]","v":0},{"$f":"(Tabel249[[#This Row],[TVA récupérable]]*Tabel249[[#This Row],[Quantité]])","v":0},{"$f":"(Tabel249[[#This Row],[TVA non-récupérable]]*Tabel249[[#This Row],[Quantité]])","v":0}]
[null,null,null,null,null,null,null,null,{"$f":"(Tabel249[[#This Row],[Coût hors TVA]]+Tabel249[[#This Row],[TVA récupérable]]+Tabel249[[#This Row],[TVA non-récupérable]])*Tabel249[[#This Row],[Quantité]]","v":0},{"$f":"(Tabel249[[#This Row],[TVA récupérable]]*Tabel249[[#This Row],[Quantité]])","v":0},{"$f":"(Tabel249[[#This Row],[TVA non-récupérable]]*Tabel249[[#This Row],[Quantité]])","v":0}]
[null,null,null,null,null,null,null,null,{"$f":"(Tabel249[[#This Row],[Coût hors TVA]]+Tabel249[[#This Row],[TVA récupérable]]+Tabel249[[#This Row],[TVA non-récupérable]])*Tabel249[[#This Row],[Quantité]]","v":0},{"$f":"(Tabel249[[#This Row],[TVA récupérable]]*Tabel249[[#This Row],[Quantité]])","v":0},{"$f":"(Tabel249[[#This Row],[TVA non-récupérable]]*Tabel249[[#This Row],[Quantité]])","v":0}]
[null,null,null,null,null,null,null,null,{"$f":"(Tabel249[[#This Row],[Coût hors TVA]]+Tabel249[[#This Row],[TVA récupérable]]+Tabel249[[#This Row],[TVA non-récupérable]])*Tabel249[[#This Row],[Quantité]]","v":0},{"$f":"(Tabel249[[#This Row],[TVA récupérable]]*Tabel249[[#This Row],[Quantité]])","v":0},{"$f":"(Tabel249[[#This Row],[TVA non-récupérable]]*Tabel249[[#This Row],[Quantité]])","v":0}]
[null,null,null,null,null,null,null,null,{"$f":"(Tabel249[[#This Row],[Coût hors TVA]]+Tabel249[[#This Row],[TVA récupérable]]+Tabel249[[#This Row],[TVA non-récupérable]])*Tabel249[[#This Row],[Quantité]]","v":0},{"$f":"(Tabel249[[#This Row],[TVA récupérable]]*Tabel249[[#This Row],[Quantité]])","v":0},{"$f":"(Tabel249[[#This Row],[TVA non-récupérable]]*Tabel249[[#This Row],[Quantité]])","v":0}]
["Année 3","Organisation","Description du coût","Objectif","Coût hors TVA","TVA récupérable","TVA non-récupérable","Quantité","Total","Total TVA récupérable","Total TVA non-récupérable"]
[null,null,null,null,null,null,null,1,{"$f":"(Tabel2510[[#This Row],[Coût hors TVA]]+Tabel2510[[#This Row],[TVA récupérable]]+Tabel2510[[#This Row],[TVA non-récupérable]])*Tabel2510[[#This Row],[Quantité]]","v":0},{"$f":"(Tabel2510[[#This Row],[TVA récupérable]]*Tabel2510[[#This Row],[Quantité]])","v":0},{"$f":"(Tabel2510[[#This Row],[TVA non-récupérable]]*Tabel2510[[#This Row],[Quantité]])","v":0}]
[null,null,null,null,null,null,null,null,{"$f":"(Tabel2510[[#This Row],[Coût hors TVA]]+Tabel2510[[#This Row],[TVA récupérable]]+Tabel2510[[#This Row],[TVA non-récupérable]])*Tabel2510[[#This Row],[Quantité]]","v":0},{"$f":"(Tabel2510[[#This Row],[TVA récupérable]]*Tabel2510[[#This Row],[Quantité]])","v":0},{"$f":"(Tabel2510[[#This Row],[TVA non-récupérable]]*Tabel2510[[#This Row],[Quantité]])","v":0}]
[null,null,null,null,null,null,null,null,{"$f":"(Tabel2510[[#This Row],[Coût hors TVA]]+Tabel2510[[#This Row],[TVA récupérable]]+Tabel2510[[#This Row],[TVA non-récupérable]])*Tabel2510[[#This Row],[Quantité]]","v":0},{"$f":"(Tabel2510[[#This Row],[TVA récupérable]]*Tabel2510[[#This Row],[Quantité]])","v":0},{"$f":"(Tabel2510[[#This Row],[TVA non-récupérable]]*Tabel2510[[#This Row],[Quantité]])","v":0}]
[null,null,null,null,null,null,null,null,{"$f":"(Tabel2510[[#This Row],[Coût hors TVA]]+Tabel2510[[#This Row],[TVA récupérable]]+Tabel2510[[#This Row],[TVA non-récupérable]])*Tabel2510[[#This Row],[Quantité]]","v":0},{"$f":"(Tabel2510[[#This Row],[TVA récupérable]]*Tabel2510[[#This Row],[Quantité]])","v":0},{"$f":"(Tabel2510[[#This Row],[TVA non-récupérable]]*Tabel2510[[#This Row],[Quantité]])","v":0}]
[null,null,null,null,null,null,null,null,{"$f":"(Tabel2510[[#This Row],[Coût hors TVA]]+Tabel2510[[#This Row],[TVA récupérable]]+Tabel2510[[#This Row],[TVA non-récupérable]])*Tabel2510[[#This Row],[Quantité]]","v":0},{"$f":"(Tabel2510[[#This Row],[TVA récupérable]]*Tabel2510[[#This Row],[Quantité]])","v":0},{"$f":"(Tabel2510[[#This Row],[TVA non-récupérable]]*Tabel2510[[#This Row],[Quantité]])","v":0}]

{"sheet":"Revenus et recettes","index":5,"n_rows":24,"n_cols":14,"rows_kept":24,"cut":false,"hidden":false,"merged":[[9,11,10,13],[9,7,10,9],[9,0,10,2],[0,0,0,1],[2,0,3,13],[5,0,6,13]]}
["Revenus (propres + autres)"]
[]
["Gardez à l'esprit en remplissant les rubriques \"autres apports (partenaire/privé)\" et \"autres contributions publiques/subventions (demandées ou obtenues)\" qu'aucun double financement avec la subvention demandée n'est autorisée dans le cadre de l'appel à projet \"e-inclusion for Belgium - CPAS 2022\"."]
[]
[]
["Tout projet demandant un financement pour plus d'un an (projet d'une durée totale de 2 ou 3 ans) doit démontrer un cofinancement d'au moins 20 % du montant total des coûts éligibles du projet. Le CPAS soumettant la demande doit justifier de manière appropriée comment il garantira ce cofinancement (ressources propres, autres subventions). Cependant, aucun double financement de la même dépense n'est autorisé. \nLe financement par un autre fonds de l'UE n'est pas accepté."]
[]
[]
["Si vous avez besoin de plus de lignes que celles prévues dans le(s) tableau(x), vous pouvez ajouter vous-même des lignes en cliquant dans le tableau concerné avec votre souris, puis sur le bouton \"Ajouter une ligne\"."]
["Contribution propre/revenus ou recettes",null,null,null,null,null,null,"Autres apports (partenaire/privé)",null,null,null,"Autres contributions publiques/subventions (demandées ou obtenues)"]
[]
["Année 1","Origine","Montant",null,null,null,null,"Année 1","Origine","Montant",null,"Année 1","Origine","Montant"]
[]
[]
[]
[]
[]
["Année 2","Origine","Montant",null,null,null,null,"Année 2","Origine","Montant",null,"Année 2","Origine","Montant"]
[]
[]
[]
[]
[]
["Année 3","Origine","Montant",null,null,null,null,"Année 3","Origine","Montant",null,"Année 3","Origine","Montant"]

{"sheet":"Aperçu des coûts possibles","index":6,"n_rows":25,"n_cols":9,"rows_kept":25,"cut":false,"hidden":false,"merged":[[0,0,0,4],[9,8,23,14],[2,0,5,14],[24,0,24,14],[7,0,8,6],[7,8,8,14],[9,0,23,6]]}
["Aperçu des coûts possibles"]
[]
["Les dépenses doivent:\n•\t Avoir été générées au cours de la période de subvention : de novembre 2022 à octobre 2023/24/25, \n•\t Avoir été effectuées par le bénéficiaire du subside,\n•\t Être reprises dans la comptabilité et être identifiables et contrôlables\nLes projets soutenus doivent être sans but lucratif."]
[]
[]
[]
[]
["La subvention octroyée au CPAS (et à ses partenaires) pourra servir à financer les frais suivants (liste exemplative):",null,null,null,null,null,null,null,"Les frais suivants ne sont pas admis comme dépenses éligibles:"]
[]
["•\t Charges salariales internes des membres du personnel qui travailleront directement sur le projet proportionnellement au temps qu’ils y consacreront\n•\t Prestations de tiers externe au CPAS (consultance, expertise, formateur) \n•\t Frais de fonctionnement et d’activités directement engendrés par le projet (consentis après l’octroi du subside et avant la fin du projet) : frais administratifs, achat ou location de matériel, etc.\n•\t Loyers et charges locatives, hors bâtiments appartenant déjà au CPAS\n•\t Frais de déplacement dans le cadre du projet\n•\t Développement de supports de communication papier ou informatiques (flyers, affiches, site internet, cours en ligne, applications, vidéos, etc.)\n•\t Achat de matériel informatique (maximum 25% du budget total du projet)\n•\t Amortissements et investissements directement liés à la réalisation du projet",null,null,null,null,null,null,null,"•\t Double financement\n•\t TVA récupérable\n•\t Investissements ayant un délai d’amortissement supérieur à 3 ans\n•\t Frais de restaurant et catering\n•\t Indemnisations, amendes, pénalités financières, dettes et charges liées aux dettes\n•\t Avantages extra-légaux\n•\t Frais consentis avant le projet ou après la fin du projet\n•\t Frais d’amortissement pour l’utilisation d’équipements ou d’infrastructures existants\n•\t Frais de voyage et de séjour à l’étranger"]
[]
[]
[]
[]
[]
[]
[]
[]
[]
[]
[]
[]
[]
[]
["En cas de doute ou de contradiction au sujet des dépenses éligibles, la règlementation européenne en matière de subside prévaudra toujours sur le règlement."]